fUSD/lending_fUSD_20250117
["ID","MTS","AMOUNT","RATE_DAILY","PERIOD"]
[349272571,1737088240268,-157.81537896,0.0002888,2]
[349272572,1737088240278,-1259.36,0.00029041,30]
[349272573,1737088240289,-491.5,0.00029048,2]
[349272574,1737088240300,-171.0,0.00029144,3]
[349272575,1737088240310,-500.0,0.00029216,3]
[349272576,1737088240321,-160.46734813,0.00029241,2]
[349272577,1737088240332,-1259.36,0.00029315,30]
[349272578,1737088240342,-252.7028532,0.00029399,4]
[349272579,1737088240353,-1259.36,0.00029589,30]
[349272580,1737088240363,-500.0,0.000296,3]
[349272581,1737088240373,-500.0,0.000296,3]
[349272582,1737088240384,-792.87,0.000296,3]
[349272583,1737088240395,-500.0,0.000296,3]
[349272584,1737088240407,-615.54,0.000296,3]
[349272585,1737088240418,-500.0,0.000296,3]
[349272586,1737088240428,-711.96,0.000296,3]
[349272587,1737088240439,-1816.12,0.000296,3]
[349272588,1737088240451,-510.33,0.000296,3]
[349272589,1737088240462,-500.0,0.000296,3]
[349272590,1737088240474,-776.74,0.000296,3]
[349272591,1737088240485,-500.0,0.000296,3]
[349272592,1737088240495,-1289.11,0.000296,3]
[349272593,1737088240506,-958.91,0.000296,3]
[349272594,1737088240516,-710.75,0.000296,3]
[349272595,1737088240527,-1852.21,0.000296,3]
[349272596,1737088240537,-913.07,0.000296,3]
[349272597,1737088240546,-1621.23,0.000296,3]
[349272598,1737088240556,-500.0,0.00029601,3]
[349272599,1737088240566,-500.0,0.00029601,3]
[349272600,1737088240575,-500.0,0.00029601,3]
[349272601,1737088240585,-500.0,0.00029601,3]
[349272602,1737088240595,-186.45661869,0.00029601,3]
[349272603,1737088240605,-500.0,0.00029601,3]
[349272604,1737088240615,-1519.38,0.00029601,3]
[349272605,1737088240625,-500.0,0.00029601,3]
[349272606,1737088240634,-529.29,0.00029601,3]
[349272607,1737088240643,-150.34,0.00029602,2]
[349272608,1737088240652,-160.46734813,0.00029641,2]
[349272609,1737088240662,-157.81537896,0.00029672,2]
[349272610,1737088240672,-2836.64844,0.000297,2]
[349272611,1737088240683,-150.0,0.00029735,2]
[349272612,1737088240693,-277.80079307,0.00029738,2]
[349272613,1737088240703,-150.0,0.00029745,2]
[349272614,1737088240712,-150.0,0.00029752,2]
[349272615,1737088240721,-150.0,0.0002976,2]
[349272616,1737088240731,-150.0,0.00029778,2]
[349272617,1737088240740,-150.0,0.00029787,2]
[349272618,1737088240749,-150.0,0.00029801,2]
[349272619,1737088240757,-3708.6,0.00029815,2]
[349272620,1737088240767,-150.0,0.00029831,2]
[349272621,1737088240776,-150.0,0.00029847,2]
[349272622,1737088240786,-1259.36,0.00029863,30]
[349272623,1737088241047,-388.44,0.00029863,2]
[349272624,1737088241057,-284.97,0.00029863,2]
[349272625,1737088241068,-150.0,0.00029863,2]
[349272626,1737088241078,-150.0,0.0002987,2]
[349272627,1737088241087,-150.0,0.00029873,2]
[349272628,1737088241097,-256.04,0.00029883,120]
[349272629,1737088241106,-150.0,0.0002989,2]
[349272630,1737088241115,-150.0,0.00029892,2]
[349272631,1737088241125,-150.0,0.00029893,2]
[349272632,1737088241135,-150.0,0.00029896,2]
[349272633,1737088241144,-3000.0,0.000299,3]
[349272634,1737088241153,-3000.0,0.000299,7]
[349272635,1737088241163,-400.0,0.000299,10]
[349272636,1737088241172,-150.0,0.00029917,2]
[349272637,1737088241185,-150.0,0.00029926,2]
[349272638,1737088241194,-188.19051518,0.00029939,2]
[349272639,1737088241204,-150.0,0.00029945,2]
[349272640,1737088241214,-150.0,0.00029963,2]
[349272641,1737088241224,-500.0,0.00029972,3]
[349272642,1737088241235,-500.0,0.00029972,3]
[349272643,1737088241245,-3590.1,0.00029972,3]
[349272644,1737088241254,-778.44,0.00029972,3]
[349272645,1737088241265,-1296.68,0.00029972,3]
[349272646,1737088241275,-1099.31,0.00029972,3]
[349272647,1737088241285,-825.27,0.00029972,3]
[349272648,1737088241295,-809.63,0.00029972,3]
[349272649,1737088241304,-1635.1,0.00029972,3]
[349272650,1737088241314,-806.02,0.00029972,3]
[349272651,1737088241324,-500.0,0.00029972,3]
[349272652,1737088241333,-500.0,0.00029972,3]
[349272653,1737088241343,-4854.36,0.00029972,3]
[349272654,1737088241353,-500.0,0.00029972,3]
[349272655,1737088241362,-500.0,0.00029973,5]
[349272656,1737088241371,-539.17127512,0.00029973,5]
[349272657,1737088241381,-151.8132122,0.00029973,5]
[349272658,1737088241390,-500.22208709,0.00029973,5]
[349272659,1737088241400,-500.0,0.00029973,5]
[349272660,1737088241409,-500.0,0.00029973,5]
[349272661,1737088241419,-500.0,0.00029973,5]
[349272662,1737088241428,-150.0,0.00029973,2]
[349272663,1737088241438,-12360.6928719,0.00029995,2]
[349272664,1737088241447,-6618.527956,0.00029995,2]
[349272665,1737088241457,-500.0,0.00029997,3]
[349272666,1737088241467,-500.0,0.00029997,3]
[349272667,1737088241478,-500.0,0.00029997,3]
[349272668,1737088241488,-500.0,0.00029997,3]
[349272669,1737088241497,-500.0,0.00029997,3]
[349272670,1737088241506,-500.0,0.00029997,3]
[349272671,1737088241515,-781.28,0.00029997,3]
[349272672,1737088241524,-639.55,0.00029997,3]
[349272673,1737088241533,-500.0,0.00029997,3]
[349272674,1737088241542,-522.26,0.00029997,3]
[349272675,1737088241552,-928.35,0.00029997,3]
[349272676,1737088241562,-500.0,0.00029997,3]
[349272677,1737088241572,-588.31964417,0.00029997,3]
[349272678,1737088241581,-500.0,0.00029997,3]
[349272679,1737088241591,-500.0,0.00029997,3]
[349272680,1737088241601,-500.0,0.00029997,3]
[349272681,1737088241610,-390.35322522,0.00029997,3]
[349272682,1737088241620,-863.89,0.00029997,3]
[349272683,1737088241630,-500.0,0.00029997,3]
[349272684,1737088241639,-523.64829807,0.00029997,3]
[349272685,1737088241649,-500.0,0.00029997,3]
[349272686,1737088241659,-500.0,0.00029997,3]
[349272687,1737088241669,-500.0,0.00029998,3]
[349272688,1737088241679,-1904.6,0.00029998,3]
[349272689,1737088241689,-619.0,0.00029998,3]
[349272690,1737088241699,-500.0,0.00029998,3]
[349272691,1737088241710,-500.0,0.00029998,3]
[349272692,1737088241720,-500.0,0.00029998,3]
[349272693,1737088241731,-223.67,0.00029999,3]
[349272694,1737088241741,-500.0,0.00029999,3]
[349272695,1737088241750,-569.81,0.00029999,3]
[349272696,1737088241759,-500.0,0.00029999,3]
[349272697,1737088241768,-500.0,0.00029999,3]
[349272698,1737088241778,-496.49986557,0.00029999,3]
[349272699,1737088241788,-500.0,0.00029999,3]
[349272700,1737088241798,-208.85602451,0.00029999,3]
[349272701,1737088241807,-500.0,0.00029999,3]
[349272702,1737088241817,-500.0,0.00029999,3]
[349272703,1737088241826,-500.0,0.00029999,3]
[349272704,1737088241836,-500.0,0.00029999,3]
[349272705,1737088241845,-1904.6,0.00029999,3]
[349272706,1737088241855,-1904.6,0.00029999,3]
[349272707,1737088241864,-500.0,0.00029999,3]
[349272708,1737088241873,-500.0,0.00029999,3]
[349272709,1737088241882,-619.0,0.00029999,3]
[349272710,1737088241892,-619.0,0.00029999,3]
[349272711,1737088241901,-500.0,0.00029999,3]
[349272712,1737088241911,-500.0,0.00029999,3]
[349272713,1737088241921,-781.28,0.00029999,3]
[349272714,1737088241931,-623.48403888,0.00029999,3]
[349272715,1737088241940,-500.0,0.00029999,3]
[349272716,1737088241952,-500.0,0.00029999,3]
[349272717,1737088241962,-500.0,0.00029999,3]
[349272718,1737088241971,-639.55,0.00029999,3]
[349272719,1737088241982,-500.0,0.00029999,3]
[349272720,1737088241992,-500.0,0.00029999,3]
[349272721,1737088242002,-500.0,0.00029999,3]
[349272722,1737088242011,-500.0,0.00029999,3]
[349272723,1737088242021,-500.0,0.00029999,3]
[349272724,1737088242031,-500.0,0.00029999,3]
[349272725,1737088242041,-396.76,0.00029999,3]
[349272726,1737088242051,-3590.1,0.00029999,3]
[349272727,1737088242061,-1519.38,0.00029999,3]
[349272728,1737088242072,-500.0,0.00029999,3]
[349272729,1737088242081,-500.0,0.00029999,3]
[349272730,1737088242091,-500.0,0.00029999,3]
[349272731,1737088242099,-778.44,0.00029999,3]
[349272732,1737088242108,-500.0,0.00029999,3]
[349272733,1737088242118,-500.0,0.00029999,3]
[349272734,1737088242128,-1296.68,0.00029999,3]
[349272735,1737088242138,-500.0,0.00029999,3]
[349272736,1737088242147,-792.87,0.00029999,3]
[349272737,1737088242157,-500.0,0.00029999,3]
[349272738,1737088242166,-1099.31,0.00029999,3]
[349272739,1737088242177,-500.0,0.00029999,3]
[349272740,1737088242190,-615.54,0.00029999,3]
[349272741,1737088242200,-500.0,0.00029999,3]
[349272742,1737088242210,-500.0,0.00029999,3]
[349272744,1737088242220,-711.96,0.00029999,3]
[349272746,1737088242232,-825.27,0.00029999,3]
[349272748,1737088242242,-568.09082134,0.00029999,2]
[349272750,1737088242251,-1816.12,0.00029999,3]
[349272752,1737088242263,-522.26,0.00029999,3]
[349272754,1737088242273,-809.63,0.00029999,3]
[349272756,1737088242283,-500.0,0.00029999,3]
[349272758,1737088242292,-500.0,0.00029999,3]
[349272760,1737088242302,-510.33,0.00029999,3]
[349272761,1737088242313,-500.0,0.00029999,3]
[349272762,1737088242323,-928.35,0.00029999,3]
[349272763,1737088242333,-522.32910407,0.00029999,3]
[349272765,1737088242343,-776.74,0.00029999,3]
[349272767,1737088242352,-500.0,0.00029999,3]
[349272769,1737088242361,-806.02,0.00029999,3]
[349272771,1737088242370,-1635.1,0.00029999,3]
[349272773,1737088242379,-500.0,0.00029999,3]
[349272775,1737088242388,-500.0,0.00029999,3]
[349272777,1737088242397,-500.0,0.00029999,3]
[349272779,1737088242406,-1289.11,0.00029999,3]
[349272781,1737088242416,-474.79512426,0.00029999,3]
[349272783,1737088242426,-958.91,0.00029999,3]
[349272785,1737088242436,-863.89,0.00029999,3]
[349272787,1737088242446,-710.75,0.00029999,3]
[349272789,1737088242456,-500.0,0.00029999,3]
[349272790,1737088242466,-511.35885641,0.00029999,3]
[349272791,1737088242475,-500.0,0.00029999,3]
[349272792,1737088242484,-1852.21,0.00029999,3]
[349272793,1737088242493,-500.0,0.00029999,3]
[349272794,1737088242502,-4854.36,0.00029999,3]
[349272795,1737088242511,-913.07,0.00029999,3]
[349272796,1737088242520,-500.0,0.00029999,3]
[349272797,1737088242529,-1621.23,0.00029999,3]
[349272798,1737088242538,-500.0,0.00029999,3]
[349272799,1737088242548,-500.0,0.00029999,3]
[349272800,1737088242558,-143332.51673848,0.0003,5]
[349272801,1737088242568,-151.0,0.0003,120]
[349272802,1737088242578,-2302.01639308,0.0003,4]
[349272803,1737088242587,-151.0,0.0003,120]
[349272804,1737088242596,-758.37647367,0.0003,120]
[349272805,1737088242606,-200.0,0.0003,2]
[349272806,1737088242616,-500.0,0.0003,2]
[349272807,1737088242626,-500.0,0.0003,2]
[349272808,1737088242636,-500.0,0.0003,2]
[349272809,1737088242645,-500.0,0.0003,2]
[349272810,1737088242655,-500.0,0.0003,2]
[349272811,1737088242665,-500.0,0.0003,2]
[349272812,1737088242674,-500.0,0.0003,2]
[349272813,1737088242682,-500.0,0.0003,2]
[349272814,1737088242691,-500.0,0.0003,2]
[349272815,1737088242700,-500.0,0.0003,2]
[349272816,1737088242709,-500.0,0.0003,2]
[349272817,1737088242718,-500.0,0.0003,2]
[349272818,1737088242728,-500.0,0.0003,2]
[349272819,1737088242736,-500.0,0.0003,2]
[349272820,1737088242746,-500.0,0.0003,2]
[349272821,1737088242757,-500.0,0.0003,2]
[349272822,1737088242767,-500.0,0.0003,2]
[349272823,1737088242777,-500.0,0.0003,2]
[349272824,1737088242786,-500.0,0.0003,2]
[349272825,1737088242796,-500.0,0.0003,2]
[349272826,1737088242806,-500.0,0.0003,2]
[349272827,1737088242816,-500.0,0.0003,2]
[349272828,1737088242825,-500.0,0.0003,2]
[349272829,1737088242835,-500.0,0.0003,2]
[349272830,1737088242845,-500.0,0.0003,2]
[349272831,1737088242853,-500.0,0.0003,2]
[349272832,1737088242862,-500.0,0.0003,2]
[349272833,1737088242871,-500.0,0.0003,2]
[349272835,1737088242881,-500.0,0.0003,2]
[349272837,1737088242891,-500.0,0.0003,2]
[349272838,1737088242901,-500.0,0.0003,2]
[349272839,1737088242910,-500.0,0.0003,2]
[349272840,1737088242920,-500.0,0.0003,2]
[349272841,1737088242929,-500.0,0.0003,2]
[349272842,1737088242939,-500.0,0.0003,2]
[349272843,1737088242949,-500.0,0.0003,2]
[349272844,1737088242959,-500.0,0.0003,2]
[349272845,1737088242968,-500.0,0.0003,2]
[349272846,1737088242978,-500.0,0.0003,2]
[349272847,1737088242987,-500.0,0.0003,2]
[349272848,1737088242997,-500.0,0.0003,2]
[349272849,1737088243006,-500.0,0.0003,2]
[349272850,1737088243016,-500.0,0.0003,2]
[349272851,1737088243026,-500.0,0.0003,2]
[349272852,1737088243036,-500.0,0.0003,2]
[349272854,1737088243045,-500.0,0.0003,2]
[349272855,1737088243055,-500.0,0.0003,2]
[349272856,1737088243067,-500.0,0.0003,2]
[349272857,1737088243077,-500.0,0.0003,2]
[349272858,1737088243086,-500.0,0.0003,2]
[349272859,1737088243096,-500.0,0.0003,2]
[349272860,1737088243105,-500.0,0.0003,2]
[349272861,1737088243115,-500.0,0.0003,2]
[349272862,1737088243125,-500.0,0.0003,2]
[349272863,1737088243134,-500.0,0.0003,2]
[349272864,1737088243143,-500.0,0.0003,2]
[349272865,1737088243152,-500.0,0.0003,2]
[349272866,1737088243162,-500.0,0.0003,2]
[349272867,1737088243172,-500.0,0.0003,2]
[349272868,1737088243182,-500.0,0.0003,2]
[349272869,1737088243192,-500.0,0.0003,2]
[349272870,1737088243202,-500.0,0.0003,2]
[349272871,1737088243212,-500.0,0.0003,2]
[349272872,1737088243222,-500.0,0.0003,2]
[349272873,1737088243233,-500.0,0.0003,2]
[349272874,1737088243242,-500.0,0.0003,2]
[349272875,1737088243253,-500.0,0.0003,2]
[349272876,1737088243262,-500.0,0.0003,2]
[349272877,1737088243273,-500.0,0.0003,2]
[349272878,1737088243283,-500.0,0.0003,2]
[349272879,1737088243293,-500.0,0.0003,2]
[349272880,1737088243302,-500.0,0.0003,2]
[349272881,1737088243312,-500.0,0.0003,2]
[349272882,1737088243321,-500.0,0.0003,2]
[349272883,1737088243331,-500.0,0.0003,2]
[349272884,1737088243340,-500.0,0.0003,2]
[349272885,1737088243349,-500.0,0.0003,2]
[349272886,1737088243358,-500.0,0.0003,2]
[349272888,1737088243368,-500.0,0.0003,2]
[349272889,1737088243378,-500.0,0.0003,2]
[349272890,1737088243388,-500.0,0.0003,2]
[349272891,1737088243397,-500.0,0.0003,2]
[349272893,1737088243407,-150.0,0.0003,5]
[349272894,1737088243417,-500.0,0.0003,2]
[349272895,1737088243426,-500.0,0.0003,2]
[349272896,1737088243435,-500.0,0.0003,2]
[349272897,1737088243445,-500.0,0.0003,2]
[349272898,1737088243454,-500.0,0.0003,2]
[349272899,1737088243463,-500.0,0.0003,2]
[349272900,1737088243475,-500.0,0.0003,2]
[349272901,1737088243485,-500.0,0.0003,2]
[349272902,1737088243494,-500.0,0.0003,2]
[349272903,1737088243505,-500.0,0.0003,2]
[349272904,1737088243514,-500.0,0.0003,2]
[349272905,1737088243524,-500.0,0.0003,2]
[349272906,1737088243533,-500.0,0.0003,2]
[349272907,1737088243542,-500.0,0.0003,2]
[349272908,1737088243552,-500.0,0.0003,2]
[349272909,1737088243561,-500.0,0.0003,2]
[349272910,1737088243571,-500.0,0.0003,2]
[349272911,1737088243580,-500.0,0.0003,2]
[349272912,1737088243589,-500.0,0.0003,2]
[349272913,1737088243599,-500.0,0.0003,2]
[349272914,1737088243608,-500.0,0.0003,2]
[349272915,1737088243617,-510.0,0.0003,2]
[349272916,1737088243626,-3000.0,0.0003,7]
[349272917,1737088243636,-3000.0,0.0003,5]
[349272918,1737088243645,-3000.0,0.0003,3]
[349272919,1737088243654,-467.0,0.0003,2]
[349272920,1737088243663,-244.84928026,0.0003,5]
[349272921,1737088243673,-150.0,0.0003,5]
[349272922,1737088243682,-150.0,0.0003,5]
[349272923,1737088243692,-150.0,0.0003,2]
[349272924,1737088243701,-500.0,0.0003,5]
[349272925,1737088243711,-150.0,0.0003,5]
[349272926,1737088243721,-947.9299,0.0003,2]
[349272927,1737088243731,-534.5344,0.0003,2]
[349272928,1737088243740,-1000.0,0.00030015,2]
[349272929,1737088243750,-150.0,0.00030027,5]
[349272930,1737088243759,-500.0,0.00030027,5]
[349272931,1737088243769,-150.0,0.00030027,5]
[349272932,1737088243779,-223.67,0.0003003,3]
[349272933,1737088243788,-500.0,0.0003003,3]
[349272934,1737088243798,-569.81,0.0003003,3]
[349272935,1737088243808,-500.0,0.0003003,3]
[349272936,1737088243818,-171.77757391,0.0003003,3]
[349272937,1737088243827,-500.0,0.0003003,3]
[349272938,1737088243837,-228.68978383,0.0003003,3]
[349272939,1737088243846,-500.0,0.0003003,3]
[349272940,1737088243855,-500.0,0.0003003,3]
[349272941,1737088243865,-500.0,0.0003003,3]
[349272942,1737088243874,-500.0,0.0003003,3]
[349272943,1737088243884,-500.0,0.0003003,3]
[349272944,1737088243894,-500.0,0.0003003,3]
[349272945,1737088243904,-781.28,0.0003003,3]
[349272946,1737088243915,-500.0,0.0003003,3]
[349272947,1737088243925,-500.0,0.0003003,3]
[349272948,1737088243935,-500.0,0.0003003,3]
[349272949,1737088243944,-639.55,0.0003003,3]
[349272950,1737088243954,-500.0,0.0003003,3]
[349272951,1737088243963,-500.0,0.0003003,3]
[349272952,1737088243972,-500.0,0.0003003,3]
[349272953,1737088243983,-600.17,0.0003003,3]
[349272954,1737088243992,-3590.1,0.0003003,3]
[349272955,1737088244001,-1519.38,0.0003003,3]
[349272956,1737088244012,-500.0,0.0003003,3]
[349272957,1737088244021,-500.0,0.0003003,3]
[349272958,1737088244031,-778.44,0.0003003,3]
[349272959,1737088244040,-500.0,0.0003003,3]
[349272960,1737088244049,-1296.68,0.0003003,3]
[349272961,1737088244059,-500.0,0.0003003,3]
[349272962,1737088244068,-792.87,0.0003003,3]
[349272963,1737088244077,-161.99211782,0.0003003,3]
[349272964,1737088244086,-1099.31,0.0003003,3]
[349272965,1737088244095,-500.0,0.0003003,3]
[349272966,1737088244105,-615.54,0.0003003,3]
[349272967,1737088244114,-500.0,0.0003003,3]
[349272968,1737088244124,-216.42,0.0003003,3]
[349272969,1737088244134,-711.96,0.0003003,3]
[349272970,1737088244272,-825.27,0.0003003,3]
[349272971,1737088244283,-1816.12,0.0003003,3]
[349272972,1737088244294,-522.26,0.0003003,3]
[349272973,1737088244304,-809.63,0.0003003,3]
[349272974,1737088244314,-500.0,0.0003003,3]
[349272975,1737088244325,-500.0,0.0003003,3]
[349272976,1737088244335,-510.33,0.0003003,3]
[349272977,1737088244346,-928.35,0.0003003,3]
[349272978,1737088244355,-776.74,0.0003003,3]
[349272979,1737088244363,-806.02,0.0003003,3]
[349272980,1737088244373,-1635.1,0.0003003,3]
[349272981,1737088244382,-500.0,0.0003003,3]
[349272982,1737088244392,-512.65662417,0.0003003,3]
[349272983,1737088244401,-1289.11,0.0003003,3]
[349272984,1737088244410,-958.91,0.0003003,3]
[349272985,1737088244420,-863.89,0.0003003,3]
[349272986,1737088244430,-710.75,0.0003003,3]
[349272987,1737088244439,-500.0,0.0003003,3]
[349272988,1737088244448,-500.0,0.0003003,3]
[349272989,1737088244457,-1852.21,0.0003003,3]
[349272990,1737088244466,-500.0,0.0003003,3]
[349272991,1737088244476,-4854.36,0.0003003,3]
[349272992,1737088244485,-913.07,0.0003003,3]
[349272993,1737088244494,-1621.23,0.0003003,3]
[349272994,1737088244503,-500.0,0.0003003,3]
[349272995,1737088244512,-425.87200088,0.0003003,3]
[349272996,1737088244521,-168069.0,0.00030031,5]
[349272997,1737088244531,-500.0,0.00030039,3]
[349272998,1737088244540,-160.46734813,0.00030042,2]
[349272999,1737088244550,-200.0,0.00030055,5]
[349273000,1737088244559,-500.0,0.00030055,5]
[349273001,1737088244568,-216.0,0.00030055,5]
[349273002,1737088244578,-500.0,0.00030082,5]
[349273003,1737088244587,-1377.15860352,0.00030085,2]
[349273004,1737088244596,-599.0,0.0003011,5]
[349273005,1737088244606,-999.0,0.00030136,7]
[349273006,1737088244615,-1259.36,0.00030136,30]
[349273007,1737088244623,-438.08,0.00030137,2]
[349273008,1737088244633,-168.89,0.00030166,2]
[349273009,1737088244642,-235.0,0.000302,2]
[349273010,1737088244651,-188.19051513,0.0003029,2]
[349273011,1737088244660,-500.0,0.00030397,10]
[349273012,1737088244670,-1259.36,0.0003041,30]
[349273013,1737088244679,-160.46734813,0.00030442,2]
[349273014,1737088244688,-1058.0,0.0003046,5]
[349273015,1737088244697,-157.81537896,0.00030463,2]
[349273016,1737088244706,-150.0,0.00030491,120]
[349273017,1737088244716,-169.0,0.00030517,3]
[349273018,1737088244725,-1000.0,0.00030521,5]
[349273019,1737088244734,-1000.0,0.00030521,5]
[349273020,1737088244744,-500.73851799,0.00030521,5]
[349273021,1737088244753,-424.42727959,0.00030521,5]
[349273022,1737088244762,-18604.0,0.00030551,5]
[349273023,1737088244771,-2866.0,0.00030551,5]
[349273024,1737088244780,-150.431321,0.00030601,2]
[349273025,1737088244789,-168.009749,0.00030601,2]
[349273026,1737088244799,-188.19051513,0.00030641,2]
[349273027,1737088244808,-1259.36,0.00030684,30]
[349273028,1737088244817,-151.76,0.00030685,2]
[349273029,1737088244826,-300.66,0.00030685,2]
[349273030,1737088244836,-150.0,0.00030685,2]
[349273031,1737088244845,-150.0,0.00030685,2]
[349273032,1737088244855,-567.0,0.00030692,2]
[349273033,1737088244864,-635.0,0.00030692,2]
[349273034,1737088244873,-150.0,0.00030692,2]
[349273035,1737088244883,-1862.0,0.00030692,2]
[349273036,1737088244892,-907.0,0.00030692,2]
[349273037,1737088244901,-2945.0,0.00030692,2]
[349273038,1737088244910,-820.0,0.00030692,2]
[349273039,1737088244919,-1260.0,0.00030692,2]
[349273040,1737088244928,-537.0,0.00030692,2]
[349273041,1737088244937,-3981.0,0.00030692,2]
[349273042,1737088244946,-1105.0,0.00030692,2]
[349273043,1737088244956,-2017.0,0.00030692,2]
[349273044,1737088244965,-150.0,0.00030692,2]
[349273045,1737088244974,-150.0,0.00030692,2]
[349273046,1737088244984,-1268.0,0.00030692,2]
[349273047,1737088244993,-3899.0,0.00030692,2]
[349273048,1737088245002,-150.0,0.00030798,2]
[349273049,1737088245012,-150.0,0.00030798,2]
[349273050,1737088245021,-150.0,0.00030798,2]
[349273051,1737088245030,-150.0,0.00030798,2]
[349273052,1737088245039,-150.0,0.00030798,2]
[349273053,1737088245051,-150.0,0.00030798,2]
[349273054,1737088245060,-150.0,0.00030798,2]
[349273055,1737088245069,-150.0,0.00030798,2]
[349273056,1737088245079,-150.0,0.00030798,2]
[349273057,1737088245088,-150.0,0.00030798,2]
[349273058,1737088245097,-150.0,0.00030798,2]
[349273059,1737088245108,-160.46734813,0.00030843,2]
[349273060,1737088245118,-27469.57845824,0.0003088,2]
[349273061,1737088245128,-800.0,0.000309,11]
[349273062,1737088245137,-159.15,0.00030911,2]
[349273063,1737088245147,-1259.36,0.00030958,30]
[349273064,1737088245157,-1541.0,0.00030979,5]
[349273065,1737088245166,-188.19051513,0.00030993,2]
[349273066,1737088245176,-3687.0,0.00031,3]
[349273067,1737088245189,-437.76,0.00031096,2]
[349273068,1737088245198,-235.0,0.0003111,2]
[349273069,1737088245208,-5500.0,0.00031145,7]
[349273071,1737088245218,-600.0,0.00031145,7]
[349273072,1737088245228,-2000.0,0.00031145,7]
[349273073,1737088245237,-1200.0,0.000312,11]
[349273074,1737088245246,-1259.36,0.00031232,30]
[349273075,1737088245256,-160.46734813,0.00031243,2]
[349273076,1737088245266,-157.81537896,0.00031255,2]
[349273077,1737088245275,-157.58,0.00031279,2]
[349273078,1737088245285,-155.71,0.00031279,2]
[349273079,1737088245295,-1600.0,0.000313,11]
[349273080,1737088245304,-2240.0,0.000313,5]
[349273081,1737088245314,-491.5,0.00031312,2]
[349273082,1737088245323,-188.19051513,0.00031344,2]
[349273083,1737088245333,-161.965,0.0003137,120]
[349273084,1737088245342,-2000.0,0.000314,11]
[349273085,1737088245354,-400.0,0.000315,11]
[349273086,1737088245363,-1259.36,0.00031506,30]
[349273087,1737088245372,-150.0,0.00031507,2]
[349273088,1737088245382,-300.0,0.00031507,2]
[349273089,1737088245391,-168.75,0.0003151,2]
[349273090,1737088245405,-573.76164166,0.00031521,3]
[349273091,1737088245414,-792.87,0.00031521,3]
[349273092,1737088245424,-500.0,0.00031521,3]
[349273093,1737088245435,-615.54,0.00031521,3]
[349273094,1737088245446,-711.96,0.00031521,3]
[349273095,1737088245456,-1816.12,0.00031521,3]
[349273096,1737088245465,-500.0,0.00031521,3]
[349273097,1737088245477,-510.33,0.00031521,3]
[349273098,1737088245486,-776.74,0.00031521,3]